bitfinex-derivatives/quotes_SOLF0:USTF0_20250509
["timestamp","ask_amount","ask_price","bid_price","bid_amount"]
[1746771679440,1.9034,163.47,163.4,6.1206]
[1746771680139,6.1193,163.45,163.4,6.1206]
[1746771680334,1.9034,163.47,163.4,6.1206]
[1746771680743,6.1194,163.44,163.4,6.1206]
[1746771681440,6.1191,163.45,163.41,6.1204]
[1746771681641,1.9034,163.47,163.36,71.5511]
[1746771681938,1.9034,163.47,163.39,6.1211]
[1746771682335,1.9034,163.47,163.36,72.77538991]
[1746771682536,6.1196,163.44,163.36,72.77538991]
[1746771683040,6.1196,163.44,163.4,6.1205]
[1746771684142,6.1197,163.43,163.39,6.1212]
[1746771686142,1.9034,163.47,163.39,6.1212]
[1746771686443,1.9034,163.47,163.4,6.1207]
[1746771686642,1.9034,163.47,163.37,6.06908392]
[1746771686840,6.1192,163.45,163.4,6.1208]
[1746771687039,6.1192,163.45,163.37,6.06908392]
[1746771687243,6.1189,163.46,163.41,6.1201]
[1746771687534,1.9034,163.47,163.41,6.1201]
[1746771687745,6.1193,163.45,163.4,6.1207]
[1746771688245,1.9034,163.47,163.36,9.26447383]
[1746771688439,1.9034,163.47,163.36,43.86447383]
[1746771688944,6.1197,163.43,163.36,43.86447383]
[1746771689345,1.9034,163.47,163.36,43.86447383]
[1746771689644,6.1196,163.44,163.39,6.1209]
[1746771689943,6.1196,163.44,163.36,43.86447383]
[1746771690146,6.119,163.45,163.36,43.86447383]
[1746771690543,1.9034,163.47,163.4,6.1206]
[1746771690736,7.97248392,163.47,163.36,1.22428991]
[1746771690942,6.07419026,163.44,163.35,1.0]
[1746771691141,3.8826,163.43,163.35,1.0]
[1746771691344,6.1213,163.39,163.35,1.0]
[1746771691547,34.72,163.4,163.35,1.0]
[1746771692642,6.1222,163.37,163.35,1.0]
[1746771693847,6.1223,163.36,163.35,1.0]
[1746771694041,34.72,163.4,163.35,1.0]
[1746771695144,6.1223,163.37,163.35,1.0]
[1746771695447,34.72,163.4,163.35,1.0]
[1746771695849,3.8826,163.43,163.35,1.0]
[1746771696051,69.2,163.42,163.35,1.0]
[1746771696749,6.1211,163.4,163.35,1.0]
[1746771696945,69.2,163.42,163.35,1.0]
[1746771697446,34.72,163.42,163.35,1.0]
[1746771698248,6.1209,163.4,163.35,1.0]
[1746771698548,34.72,163.43,163.36,6.07346248]
[1746771698848,6.1204,163.42,163.36,6.07346248]
[1746771700150,6.1204,163.42,163.38,6.1215]
[1746771700647,6.1205,163.41,163.37,6.1218]
[1746771701849,6.1205,163.41,163.36,6.1222]
[1746771702051,6.1209,163.4,163.36,6.1222]
[1746771702348,34.72,163.43,163.36,6.1222]
[1746771702548,6.1207,163.41,163.36,6.1222]
[1746771702953,34.72,163.43,163.36,6.1222]
[1746771703445,6.1205,163.41,163.36,6.1222]
[1746771703852,6.1205,163.41,163.37,6.1219]
[1746771706250,6.1209,163.4,163.36,6.1222]
[1746771707949,6.1206,163.41,163.37,6.1219]
[1746771708144,34.72,163.43,163.35,35.42]
[1746771708649,6.1202,163.42,163.37,6.1218]
[1746771708842,34.72,163.43,163.37,6.1218]
[1746771709755,6.1206,163.41,163.37,6.1218]
[1746771710649,6.1202,163.42,163.38,6.1215]
[1746771710955,6.1202,163.42,163.35,35.42]
[1746771711158,6.1204,163.41,163.37,6.1218]
[1746771711955,6.1202,163.42,163.37,6.1218]
[1746771712254,34.72,163.44,163.37,6.1218]
[1746771712555,6.1203,163.42,163.37,6.1218]
[1746771713354,6.1205,163.41,163.37,6.1218]
[1746771714256,1.986,163.48,163.37,6.07346248]
[1746771714455,34.72,163.46,163.37,6.07346248]
[1746771714758,6.1197,163.43,163.39,6.121]
[1746771714949,34.72,163.46,163.37,6.07346248]
[1746771715857,6.1197,163.43,163.39,6.121]
[1746771716076,34.72,163.46,163.37,6.07346248]
[1746771716357,6.1196,163.44,163.37,6.07346248]
[1746771716959,6.1196,163.44,163.39,6.1208]
[1746771717259,6.119,163.45,163.37,6.07346248]
[1746771717647,6.1187,163.46,163.37,6.07346248]
[1746771717852,33.82,163.48,163.37,7.29767745]
[1746771718058,33.82,163.48,163.37,1.22421497]
[1746771718255,33.82,163.48,163.4,6.1206]
[1746771718858,67.52,163.48,163.4,6.1206]
[1746771719361,67.52,163.48,163.37,7.29767745]
[1746771719556,67.52,163.48,163.4,6.07346248]
[1746771719756,33.82,163.48,163.4,6.07346248]
[1746771719957,6.1187,163.46,163.42,6.1199]
[1746771720464,6.1183,163.47,163.43,6.1196]
[1746771720761,33.82,163.48,163.4,33.64]
[1746771721563,6.1188,163.46,163.42,6.12]
[1746771721958,33.82,163.48,163.4,33.64]
[1746771722164,6.1194,163.44,163.4,39.7606]
[1746771722360,33.82,163.48,163.4,33.64]
[1746771722664,6.119,163.45,163.41,6.1202]
[1746771723164,6.1187,163.46,163.41,6.1202]
[1746771724462,39.938,163.48,163.4,33.64]
[1746771724766,33.82,163.48,163.4,33.64]
[1746771724964,6.1195,163.44,163.4,39.7607]
[1746771725265,33.82,163.48,163.4,33.64]
[1746771725764,33.82,163.48,163.4,39.7607]
[1746771726266,6.1193,163.45,163.4,39.7607]
[1746771726466,33.82,163.48,163.4,39.7607]
[1746771726661,33.82,163.48,163.4,33.64]
[1746771727568,33.82,163.48,163.4,39.7608]
[1746771727969,6.1194,163.44,163.41,6.1203]
[1746771728461,33.82,163.48,163.41,6.1203]
[1746771728659,6.1192,163.45,163.42,6.1201]
[1746771729570,6.1192,163.45,163.41,6.1203]
[1746771730073,6.1192,163.45,163.42,6.12]
[1746771731571,6.1187,163.46,163.43,6.1195]
[1746771732373,6.1183,163.47,163.43,6.1195]
[1746771732973,6.1188,163.46,163.42,6.1199]
[1746771734168,6.1183,163.47,163.4,33.64]
[1746771734374,33.82,163.48,163.4,33.64]
[1746771734676,6.1188,163.46,163.42,6.1199]
[1746771735177,6.1188,163.46,163.4,33.64]
[1746771735373,33.82,163.48,163.4,33.64]
[1746771735774,6.1189,163.46,163.41,6.1202]
[1746771736475,6.119,163.45,163.41,6.1202]
[1746771737371,6.1187,163.46,163.42,6.12]
[1746771737775,33.82,163.48,163.4,33.64]
[1746771738167,33.82,163.48,163.41,1.0]
[1746771739971,6.07346248,163.47,163.41,1.0]
[1746771740376,5.7951,163.46,163.41,1.0]
[1746771743083,6.12,163.43,163.41,1.0]
[1746771744079,6.1201,163.42,163.41,1.0]
[1746771744675,6.1212,163.4,163.37,1.22421497]
[1746771744881,33.82,163.43,163.37,1.22421497]
[1746771745379,6.121,163.4,163.37,1.22421497]
[1746771745876,33.82,163.43,163.37,1.22421497]
[1746771746880,6.1211,163.4,163.37,1.22421497]
[1746771747379,33.82,163.43,163.37,1.22421497]
[1746771748277,33.82,163.43,163.36,6.1223]
[1746771748582,6.1211,163.4,163.36,6.1223]
[1746771749089,6.1213,163.39,163.36,6.1223]
[1746771751283,6.121,163.4,163.36,6.1223]
[1746771752385,6.1212,163.39,163.36,6.1223]
[1746771752984,6.121,163.4,163.36,6.1223]
[1746771755186,6.1202,163.42,163.35,1.0]
[1746771755389,33.82,163.43,163.35,1.0]
[1746771755788,6.1214,163.39,163.35,1.0]
[1746771756089,39.89346248,163.43,163.35,1.0]
[1746771756385,6.122,163.37,163.35,1.0]
[1746771756887,6.1223,163.36,163.35,1.0]
[1746771776807,6.1233,163.34,163.28,6.07346248]
[1746771777011,6.1233,163.34,163.27,6.0375]
[1746771777412,6.1235,163.33,163.27,6.0375]
[1746771777909,6.1235,163.33,163.29,3.88854368]
[1746771778712,6.1235,163.33,163.29,10.01324368]
[1746771779817,6.1235,163.33,163.29,6.1247]
[1746771780111,3.88854368,163.36,163.29,3.88854368]
[1746771780712,6.1237,163.33,163.29,10.01344368]
[1746771781108,3.88854368,163.36,163.29,3.88854368]
[1746771781312,33.04,163.33,163.27,5.87574368]
[1746771781516,33.04,163.32,163.27,3.88854368]
[1746771782015,6.1244,163.31,163.27,3.88854368]
[1746771782214,33.04,163.32,163.24,33.04]
[1746771782418,33.04,163.32,163.25,3.88854368]
[1746771782616,6.1249,163.3,163.25,10.01494368]
[1746771782915,33.04,163.32,163.25,10.01494368]
[1746771783113,6.1256,163.28,163.24,10.01534368]
[1746771783513,34.9741,163.32,163.24,3.88854368]
[1746771783713,6.125,163.29,163.25,6.1261]
[1746771784715,6.1247,163.3,163.26,6.126]
[1746771785715,6.125,163.29,163.26,6.126]
[1746771786415,357.0,163.37,163.25,6.07917633]
[1746771786607,65.84,163.36,163.28,6.07917633]
[1746771786813,33.04,163.36,163.28,6.07917633]
[1746771787115,39.1624,163.36,163.28,6.07917633]
[1746771788517,39.1624,163.36,163.31,6.1238]
[1746771788716,6.1228,163.35,163.31,6.1238]
[1746771788911,33.04,163.36,163.28,6.07917633]
[1746771789817,6.123,163.35,163.28,6.07917633]
[1746771790618,6.123,163.35,163.3,6.1243]
[1746771791019,6.1231,163.34,163.3,6.1243]
[1746771792923,6.1235,163.33,163.29,6.1248]
[1746771793724,6.1232,163.34,163.3,6.1245]
[1746771794020,33.04,163.36,163.3,6.1245]
[1746771794525,6.1233,163.34,163.3,6.1245]
[1746771795624,6.1233,163.34,163.31,6.1242]
[1746771795823,6.1228,163.35,163.31,6.1242]
[1746771796024,33.04,163.36,163.28,6.07917633]
[1746771796425,6.1231,163.34,163.31,6.1242]
[1746771796923,6.1228,163.35,163.31,6.1242]
[1746771798526,39.1625,163.36,163.33,6.1234]
[1746771798718,33.04,163.36,163.33,6.1234]
[1746771798921,33.04,163.36,163.31,6.07917633]
[1746771799824,33.04,163.36,163.33,6.1232]
[1746771801027,33.04,163.36,163.34,6.1231]
[1746771801729,33.04,163.36,163.33,6.1233]
[1746771801925,33.04,163.36,163.31,7.07917633]
[1746771802926,33.04,163.36,163.32,6.1235]
[1746771804128,39.1625,163.36,163.32,6.1235]
[1746771805234,6.1227,163.35,163.31,7.1241]
[1746771806526,33.04,163.36,163.31,1.0]
[1746771806728,6.1234,163.34,163.31,1.0]
[1746771808331,33.04,163.36,163.32,6.1237]
[1746771808531,33.04,163.36,163.31,7.07917633]
[1746771808935,33.04,163.36,163.33,6.1232]
[1746771809231,33.04,163.36,163.31,7.07917633]
[1746771809630,33.04,163.36,163.35,6.1227]
[1746771809931,561.14,163.4,163.32,38.45917633]
[1746771810126,561.14,163.4,163.32,42.42067633]
[1746771810627,561.14,163.4,163.32,36.3415]
[1746771810830,6.1221,163.37,163.32,42.4651]
[1746771811228,561.14,163.4,163.32,32.38]
[1746771811632,561.14,163.4,163.31,1.0]
[1746771812734,1.9376,163.39,163.31,1.0]
[1746771812933,33.06,163.38,163.31,1.0]
[1746771813131,6.1235,163.33,163.31,1.0]
[1746771813335,32.06,163.34,163.31,1.0]
[1746771813526,6.1234,163.33,163.31,1.0]
[1746771814137,32.06,163.34,163.31,1.0]
[1746771816040,32.06,163.34,163.32,6.1237]
[1746771816236,32.06,163.34,163.31,1.0]
[1746771817137,32.06,163.34,163.33,6.1234]
[1746771818241,32.06,163.34,163.32,6.1238]
[1746771818541,32.06,163.34,163.31,1.0]
[1746771818932,32.06,163.34,163.32,6.1238]
[1746771819135,32.06,163.34,163.31,1.0]
[1746771819332,32.06,163.34,163.32,6.1238]
[1746771820042,32.06,163.34,163.31,7.1241]
[1746771822443,32.06,163.34,163.32,6.1238]
[1746771823045,32.06,163.34,163.33,6.1234]
[1746771823255,32.06,163.34,163.31,1.0]
[1746771823745,32.06,163.34,163.32,6.1235]
[1746771825150,32.06,163.34,163.33,6.1234]
[1746771826246,32.06,163.34,163.32,6.1237]
[1746771827143,32.06,163.34,163.31,7.124]
[1746771827445,32.06,163.34,163.31,1.0]
[1746771829949,6.1235,163.33,163.31,1.0]
[1746771830446,65.34,163.34,163.31,1.0]
[1746771830950,6.1238,163.32,163.31,1.0]
[1746771834262,10.1406,163.33,163.31,1.0]
[1746771835861,6.1238,163.32,163.31,1.0]
[1746771836264,10.1406,163.33,163.31,1.0]
[1746771836663,4.017,163.33,163.31,1.0]
[1746771837261,6.1238,163.32,163.31,1.0]
[1746771841466,4.017,163.33,163.23,6.07917633]
[1746771841762,1.9353,163.32,163.2,6.07917633]
[1746771841968,6.1261,163.26,163.22,6.1272]
[1746771842167,6.1261,163.26,163.2,39.05917633]
[1746771842465,6.1261,163.26,163.2,6.07917633]
[1746771842665,6.1261,163.26,163.22,6.1273]
[1746771842966,6.1258,163.27,163.22,6.1273]
[1746771843670,6.1258,163.27,163.23,6.1271]
[1746771844169,39.4454,163.28,163.24,6.1268]
[1746771844367,39.4454,163.28,163.2,6.07917633]
[1746771844570,33.32,163.28,163.2,6.07917633]
[1746771844971,33.32,163.28,163.2,38.99917633]
[1746771845269,6.1257,163.27,163.23,6.127]
[1746771846173,39.4455,163.28,163.24,6.1268]
[1746771846671,6.1258,163.27,163.22,6.1273]
[1746771846970,6.1258,163.27,163.2,38.99917633]
[1746771847272,33.32,163.28,163.2,38.99917633]
[1746771847770,33.32,163.28,163.24,6.1266]
[1746771847972,33.32,163.28,163.2,38.99917633]
[1746771848473,33.32,163.28,163.24,6.1266]
[1746771848874,33.32,163.28,163.2,38.99917633]
[1746771849066,33.32,163.28,163.24,6.1265]
[1746771849370,33.32,163.28,163.2,38.99917633]
[1746771849565,33.32,163.28,163.24,6.1265]
[1746771850471,39.4453,163.28,163.24,6.1265]
[1746771850769,33.32,163.28,163.24,6.1265]
[1746771852372,33.32,163.28,163.25,6.1263]
[1746771854075,39.4456,163.28,163.2,38.79917633]
[1746771854474,39.4456,163.28,163.2,6.07917633]
[1746771854674,39.4456,163.28,163.23,6.127]
[1746771856074,33.32,163.28,163.24,6.1268]
[1746771856270,33.32,163.28,163.2,6.07917633]
[1746771857274,33.32,163.28,163.25,6.1262]
[1746771857574,33.32,163.28,163.2,6.07917633]
[1746771857775,33.32,163.28,163.24,6.1267]
[1746771858471,39.4454,163.28,163.24,6.1267]
[1746771858776,39.4454,163.28,163.23,6.1271]
[1746771860572,33.32,163.28,163.2,6.07917633]
[1746771861078,6.1264,163.26,163.21,6.1279]
[1746771861273,6.1264,163.26,163.2,6.07917633]
[1746771861977,6.1264,163.26,163.21,6.1278]
[1746771862279,6.1258,163.27,163.19,3.8627]
[1746771862579,33.32,163.28,163.21,6.1277]
[1746771862776,6.1263,163.26,163.21,6.1277]
[1746771863278,6.1263,163.26,163.22,6.1275]
[1746771863476,6.1258,163.27,163.22,6.1275]
[1746771863777,33.32,163.28,163.22,6.1275]
[1746771864378,39.4457,163.28,163.2,7.07917633]
[1746771865178,39.4457,163.28,163.23,6.1268]
[1746771865478,39.4457,163.28,163.2,7.07917633]
[1746771866182,33.32,163.28,163.2,7.07917633]
[1746771866472,33.32,163.28,163.24,6.1265]
[1746771866879,39.4456,163.28,163.24,6.1265]
[1746771867681,33.32,163.28,163.24,6.1265]
[1746771868878,39.4454,163.28,163.24,6.1265]
[1746771869079,33.32,163.28,163.25,6.1263]
[1746771871685,39.4454,163.28,163.24,6.1267]
[1746771872583,33.32,163.28,163.25,6.1263]
[1746771874180,33.32,163.28,163.2,7.07917633]
[1746771874482,33.32,163.28,163.21,1.8957]
[1746771875683,33.32,163.28,163.24,3.89096699]
[1746771875878,33.32,163.28,163.25,6.1264]
[1746771878288,33.32,163.28,163.21,1.8957]
[1746771879085,33.32,163.28,163.27,6.1257]
[1746771881488,357.0,163.34,163.23,38.09981091]
[1746771881689,64.48,163.36,163.23,38.09981091]
[1746771881988,6.1232,163.34,163.23,38.09981091]
[1746771882886,6.1232,163.34,163.29,6.1247]
[1746771883089,6.1235,163.33,163.29,6.1247]
[1746771883489,1.9236,163.35,163.29,6.1247]
[1746771883889,6.1233,163.34,163.29,6.1247]
[1746771884090,1.9236,163.35,163.28,6.1252]
[1746771884690,6.1237,163.33,163.28,6.1252]
[1746771884886,6.1237,163.33,163.29,6.1249]
[1746771886089,6.1237,163.33,163.3,6.1246]
[1746771886590,6.1237,163.33,163.29,6.1248]
[1746771887592,1.9236,163.35,163.26,6.07981091]
[1746771887887,32.46,163.36,163.26,6.07981091]
[1746771888089,38.5826,163.36,163.31,6.1238]
[1746771888593,32.46,163.36,163.3,6.1244]
[1746771889090,32.46,163.36,163.27,4.0596]
[1746771889790,6.1233,163.34,163.28,6.1249]
[1746771890091,32.46,163.36,163.27,4.0596]
[1746771890292,38.5823,163.36,163.3,6.1244]
[1746771890787,6.1229,163.35,163.3,6.1244]
[1746771891388,6.1229,163.35,163.31,6.1241]
[1746771891589,38.5825,163.36,163.31,6.1241]
[1746771891789,32.46,163.36,163.31,6.1241]
[1746771892087,32.46,163.36,163.3,6.1244]
[1746771892594,6.1233,163.34,163.3,6.1244]
[1746771896895,6.1228,163.35,163.28,31.94]
[1746771897590,6.1228,163.35,163.3,6.1245]
[1746771897997,6.1228,163.35,163.31,6.1242]
[1746771898494,6.1228,163.35,163.28,31.94]
[1746771898691,32.46,163.36,163.3,6.1243]
[1746771899097,6.1229,163.35,163.3,6.1243]
[1746771899299,6.1229,163.35,163.31,6.1242]
[1746771899499,32.46,163.36,163.29,6.07981091]
[1746771899900,32.46,163.36,163.33,6.1234]
[1746771900496,2.087,163.4,163.35,6.1227]
[1746771900897,32.02,163.41,163.33,31.92]
[1746771901097,6.1208,163.4,163.33,31.92]
[1746771902104,32.02,163.41,163.35,6.07981091]
[1746771902292,32.02,163.45,163.33,35.7689]
[1746771902496,32.02,163.45,163.37,6.07981091]
[1746771902804,6.1196,163.44,163.39,6.1209]
[1746771902999,1.9788,163.46,163.4,6.07981091]
[1746771903203,1.9788,163.46,163.39,32.8]
[1746771903395,3.8667,163.47,163.41,6.07981091]
[1746771903603,363.1181,163.48,163.41,6.07981091]
[1746771903900,5.8549,163.51,163.41,6.07981091]
[1746771904096,5.8549,163.51,163.4,5.975]
[1746771904303,5.8549,163.51,163.42,6.07981091]
[1746771904602,5.8549,163.51,163.45,6.07981091]
[1746771904802,32.02,163.53,163.4,5.975]
[1746771905205,32.02,163.53,163.45,6.1189]
[1746771905507,32.02,163.53,163.43,41.09981091]
[1746771905805,6.1167,163.52,163.43,35.02]
[1746771905995,32.02,163.53,163.43,35.02]
[1746771906502,6.07981091,163.52,163.4,42.8789902]
[1746771907205,6.118,163.48,163.4,48.9994902]
[1746771907801,34.74,163.48,163.4,1.2239902]
[1746771908004,5.914,163.47,163.4,1.2239902]
[1746771908207,6.1195,163.44,163.4,1.2239902]
[1746771908403,6.1195,163.44,163.37,6.1219]
[1746771908603,5.914,163.47,163.37,6.1219]
[1746771909200,11.99381091,163.47,163.37,6.1219]
[1746771909508,6.1193,163.44,163.38,6.1215]
[1746771909805,6.1189,163.46,163.36,6.07981091]
[1746771910106,6.1189,163.46,163.39,6.1212]
[1746771910308,6.1189,163.46,163.36,6.07981091]
[1746771910806,6.1189,163.46,163.39,6.1209]
[1746771911609,5.914,163.47,163.36,6.07981091]
[1746771911804,5.914,163.47,163.37,2.0886]
[1746771912810,5.914,163.47,163.4,6.1207]
[1746771912811,6.1187,163.46,163.4,6.1207]
[1746771913011,5.914,163.47,163.37,2.0886]
[1746771913208,5.914,163.47,163.37,4.098]
[1746771913510,5.914,163.47,163.4,6.1205]
[1746771914210,6.1187,163.46,163.4,6.1205]
[1746771914610,5.914,163.47,163.37,4.098]
[1746771914810,357.0,163.49,163.42,6.07981091]
[1746771915207,362.9067,163.49,163.39,6.07981091]
[1746771915509,6.1179,163.48,163.42,6.1198]
[1746771915714,6.1179,163.48,163.39,6.07981091]
[1746771916020,6.1179,163.48,163.42,6.1197]
[1746771916311,12.0242,163.49,163.39,6.07981091]
[1746771916508,12.0242,163.49,163.42,6.1201]
[1746771916717,5.9067,163.49,163.42,6.1201]
[1746771916910,5.9067,163.49,163.4,6.07981091]
[1746771917616,36.24,163.52,163.4,6.07981091]
[1746771917915,36.24,163.52,163.43,6.07981091]
[1746771918118,36.24,163.52,163.43,43.27981091]
[1746771918317,362.8922,163.54,163.43,74.76]
[1746771918507,5.8922,163.54,163.44,4.1161]
[1746771918817,5.8922,163.54,163.47,6.1182]
[1746771919022,5.8922,163.54,163.45,38.2]
[1746771919212,5.8922,163.54,163.44,4.1161]
[1746771919822,5.8922,163.54,163.45,6.1186]
[1746771920007,5.8922,163.54,163.43,44.31981091]
[1746771920411,44.2722,163.54,163.41,6.07981091]
[1746771920612,44.2722,163.54,163.42,38.38]
[1746771921018,44.2722,163.54,163.45,6.1188]
[1746771921317,44.2722,163.54,163.44,6.07981091]
[1746771921618,44.2722,163.54,163.42,38.38]
[1746771922317,6.1168,163.51,163.44,6.1193]
[1746771922714,44.2722,163.54,163.42,38.38]
[1746771922921,44.2722,163.54,163.42,44.4997]
[1746771923117,44.2722,163.54,163.42,38.38]
[1746771923316,6.1174,163.5,163.44,6.119]
[1746771924319,6.1168,163.51,163.42,38.38]
[1746771924516,37.56,163.52,163.42,38.38]
[1746771924813,37.56,163.52,163.43,6.07981091]
[1746771925413,37.56,163.52,163.42,45.45981091]
[1746771925613,37.56,163.52,163.42,39.38]
[1746771925919,6.1172,163.5,163.44,6.119]
[1746771926213,5.8922,163.54,163.42,39.38]
[1746771926417,39.4784,163.56,163.44,6.07981091]
[1746771926618,6.1155,163.55,163.45,3.9666]
[1746771926816,6.1155,163.55,163.45,41.5266]
[1746771927021,39.4784,163.56,163.45,41.5266]
[1746771927221,6.1153,163.55,163.5,6.117]
[1746771927613,6.1153,163.55,163.49,6.1174]
[1746771928115,6.1153,163.55,163.47,38.64]
[1746771928315,45.5933,163.56,163.5,6.1171]
[1746771928511,39.4784,163.56,163.47,44.71981091]
[1746771928921,39.4784,163.56,163.51,6.1164]
[1746771929122,39.4784,163.56,163.47,44.71981091]
[1746771929423,39.4784,163.56,163.5,6.1168]
[1746771929622,39.4784,163.56,163.47,38.64]
[1746771930025,6.1155,163.55,163.49,6.1174]
[1746771930321,6.1155,163.55,163.46,6.07981091]
[1746771930617,39.4784,163.56,163.45,10.04641091]
[1746771930816,39.4784,163.56,163.46,38.5]
[1746771931623,6.1163,163.53,163.47,6.1181]
[1746771931823,39.4784,163.56,163.47,6.1181]
[1746771932121,6.1163,163.53,163.47,6.1181]
[1746771932322,6.1163,163.53,163.48,6.1178]
[1746771933123,6.1163,163.53,163.49,6.1174]
[1746771933325,6.1156,163.54,163.49,6.1174]
[1746771933521,39.4784,163.56,163.46,38.5]
[1746771933823,37.56,163.56,163.47,6.07981091]
[1746771934023,43.6749,163.56,163.47,6.07981091]
[1746771934425,6.1153,163.55,163.47,6.07981091]
[1746771934823,6.1153,163.55,163.5,6.1168]
[1746771935026,6.1153,163.55,163.46,38.5]
[1746771935027,6.116,163.53,163.46,38.5]
[1746771935625,37.56,163.56,163.46,38.5]
[1746771936123,6.1155,163.55,163.46,38.5]
[1746771938025,6.1155,163.55,163.5,6.117]
[1746771939224,6.1155,163.55,163.46,38.5]
[1746771939225,6.1155,163.55,163.51,6.1167]
[1746771939424,6.1155,163.55,163.46,38.5]
[1746771939822,43.675,163.56,163.46,38.5]
[1746771940025,37.56,163.56,163.47,38.42]
[1746771941126,43.6749,163.56,163.47,38.42]
[1746771941330,37.56,163.56,163.47,38.42]
[1746771941931,6.1156,163.54,163.49,6.1172]
[1746771942231,37.56,163.56,163.47,38.42]
[1746771942825,37.56,163.56,163.45,41.5066]
[1746771943026,37.56,163.56,163.46,38.58]
[1746771943230,6.1157,163.54,163.49,6.1172]
[1746771943730,6.1153,163.55,163.49,6.1174]
[1746771944233,6.1153,163.55,163.45,41.5066]
[1746771944531,6.1153,163.55,163.49,6.1172]
[1746771944732,6.1153,163.55,163.46,38.42]
[1746771945434,43.6749,163.56,163.46,38.42]
[1746771945828,43.6749,163.56,163.5,6.1167]
[1746771946331,43.6749,163.56,163.51,6.1167]
[1746771946632,37.56,163.56,163.51,6.1167]
[1746771947032,43.6749,163.56,163.51,6.1167]
[1746771947828,43.6749,163.56,163.52,6.1163]
[1746771948027,37.56,163.56,163.47,38.36]
[1746771948231,37.56,163.56,163.51,6.1164]
[1746771948428,43.6751,163.56,163.51,6.1164]
[1746771948730,43.6751,163.56,163.47,38.36]
[1746771948925,37.56,163.56,163.47,38.36]
[1746771949132,6.1155,163.55,163.47,38.36]
[1746771949333,6.1155,163.55,163.5,6.1167]
[1746771949732,6.1155,163.55,163.47,38.36]
[1746771950235,37.56,163.56,163.47,38.36]
[1746771950934,37.56,163.56,163.52,6.1161]
[1746771951336,43.6749,163.56,163.52,6.1161]
[1746771951732,38.2,163.6,163.53,6.1157]
[1746771952125,38.2,163.6,163.46,6.07981091]
[1746771952433,38.2,163.6,163.47,76.46]
[1746771952734,6.1149,163.56,163.51,6.1164]
[1746771953532,6.1152,163.55,163.51,6.1164]
[1746771953736,38.2,163.6,163.46,1.22354092]
[1746771953737,38.16,163.58,163.46,1.22354092]
[1746771953930,44.23981091,163.58,163.47,38.14]
[1746771954237,6.1153,163.55,163.47,38.14]
[1746771954432,38.16,163.58,163.47,38.14]
[1746771954834,6.1149,163.56,163.47,38.14]
[1746771955032,38.16,163.58,163.47,38.14]
[1746771955632,6.1152,163.55,163.51,6.1164]
[1746771955935,38.16,163.58,163.47,38.14]
[1746771956432,6.1149,163.56,163.52,6.1161]
[1746771956639,6.07981091,163.59,163.47,38.14]
[1746771956834,76.06,163.6,163.47,38.14]
[1746771957330,76.06,163.6,163.46,1.22354092]
[1746771957530,6.1153,163.55,163.51,6.1166]
[1746771957925,6.07981091,163.59,163.46,7.30335183]
[1746771958328,6.07981091,163.59,163.47,1.22346607]